bitfinex/quotes_ETHUSD_20250406
["timestamp","ask_amount","ask_price","bid_price","bid_amount"]
[1743961457035,1.12209008,1679.2,1678.7,4.16968]
[1743961457438,4.16917,1679.0,1678.2,4.17102]
[1743961457645,0.55,1679.1,1678.0,4.17162]
[1743961457813,5.54809101,1679.1,1678.3,4.17073]
[1743961458014,0.55,1678.8,1677.5,5.73654]
[1743961458209,0.55,1678.8,1678.3,4.17069]
[1743961458516,0.55,1678.9,1678.1,4.17137]
[1743961458716,0.55,1678.7,1677.3,4.17337]
[1743961458915,0.55,1678.7,1677.8,4.17196]
[1743961458916,3.55,1678.7,1677.8,4.17196]
[1743961459231,0.55,1678.5,1677.6,4.17249]
[1743961459435,0.55,1678.5,1677.3,4.17337]
[1743961459620,0.55,1678.5,1677.8,4.17209]
[1743961459827,0.55,1678.5,1677.9,0.05959141]
[1743961460008,0.55,1678.5,1677.7,4.1722]
[1743961460215,0.55,1678.4,1678.0,4.17161]
[1743961460563,0.55,1678.5,1677.7,4.17213]
[1743961460711,1.558,1678.6,1678.2,4.17095]
[1743961461064,1.558,1678.6,1678.1,4.17126]
[1743961461342,2.28836034,1678.9,1678.2,4.23070202]
[1743961461543,2.28836034,1678.9,1678.7,4.16989]
[1743961461758,2.28836034,1678.9,1678.5,4.17022]
[1743961462043,3.4e-07,1678.9,1678.8,4.16964]
[1743961462411,3.4e-07,1678.9,1678.6,4.17013]
[1743961462617,1.558,1679.5,1679.4,4.16815]
[1743961462815,4.16739,1679.8,1678.9,4.16915]
[1743961463118,2.32075391,1679.4,1679.3,4.1684]
[1743961465910,1.558,1680.0,1679.4,4.16802]
[1743961466112,1.558,1680.0,1679.6,4.16752]
[1743961466314,1.558,1680.0,1679.8,4.16702]
[1743961466595,11.7442863,1680.4,1680.0,4.16657]
[1743961466773,1.17442863,1680.3,1679.4,4.168]
[1743961466977,0.55,1680.2,1679.0,4.16913]
[1743961467296,0.55,1679.9,1679.1,4.16887]
[1743961467498,0.55,1679.7,1679.2,0.05954062]
[1743961467809,0.55,1679.7,1679.2,4.16863]
[1743961468803,1.558,1679.8,1679.6,4.16747]
[1743961468959,1.558,1679.8,1679.2,4.16865]
[1743961469297,1.558,1680.2,1679.6,4.16752]
[1743961469501,1.558,1680.2,1679.5,4.1679]
[1743961469678,0.05954078,1680.1,1679.4,4.16801]
[1743961469881,0.55,1680.0,1679.4,4.16801]
[1743961470082,0.55,1680.0,1679.3,4.16831]
[1743961470413,1.558,1679.7,1678.9,8.3385]
[1743961470623,4.77732078,1679.6,1678.5,1.5638]
[1743961470823,0.55,1679.4,1678.6,4.17014]
[1743961471113,0.55,1679.2,1678.8,4.16947]
[1743961471417,0.55,1678.8,1678.3,4.17065]
[1743961471572,3.60954078,1678.8,1678.0,4.17143]
[1743961471775,1.558,1678.9,1678.5,4.17037]
[1743961472006,1.558,1678.9,1677.9,4.17188]
[1743961472305,1.5851,1679.3,1679.0,4.169]
[1743961472490,0.55,1679.1,1678.7,4.16975]
[1743961472690,0.55,1679.1,1678.8,4.16948]
[1743961472873,0.55,1679.2,1678.8,4.16948]
[1743961473068,0.60954078,1679.2,1678.6,4.17]
[1743961473274,0.60954078,1679.2,1678.3,4.17088]
[1743961473477,0.60954078,1679.2,1678.7,4.16979]
[1743961473710,0.60954078,1679.2,1678.6,0.05956157]
[1743961473898,0.60954078,1679.2,1678.7,0.05955873]
[1743961474077,0.60954078,1679.2,1678.4,4.17063]
[1743961474273,4.16915,1679.0,1678.0,4.1716]
[1743961474486,1.02645578,1678.9,1678.3,4.17083]
[1743961474692,0.55,1678.9,1678.3,4.17076]
[1743961474889,1.64464078,1679.3,1678.5,4.17039]
[1743961475089,1.5851,1679.7,1678.7,4.16989]
[1743961475382,5.06238997,1680.1,1679.5,4.16777]
[1743961475601,5.06238997,1680.1,1679.7,4.1674]
[1743961475809,1.5851,1680.1,1679.4,4.16802]
[1743961475986,1.5851,1680.1,1679.6,4.16748]
[1743961476185,1.5851,1680.1,1679.3,8.33644]
[1743961476390,1.5851,1680.1,1679.1,4.16887]
[1743961476391,0.05954078,1680.0,1679.1,4.16887]
[1743961476586,0.05954078,1680.0,1678.7,7.16982]
[1743961476792,0.58112908,1680.0,1679.4,4.16804]
[1743961477087,1.5851,1680.1,1679.6,4.16752]
[1743961477286,1.5851,1680.1,1679.0,3.0]
[1743961477692,1.5851,1680.1,1679.5,8.33572]
[1743961478010,1.5851,1680.1,1679.5,4.16786]
[1743961478209,7.7248394,1679.9,1679.7,4.1673]
[1743961478409,7.7248394,1679.9,1679.6,4.16755]
[1743961478598,7.7248394,1679.9,1679.8,4.16716]
[1743961478998,7.7248394,1679.9,1679.0,4.16899]
[1743961479205,1.537,1679.2,1677.8,1.6065]
[1743961479401,1.537,1679.2,1678.7,4.16981]
[1743961479588,1.537,1679.2,1678.8,4.16943]
[1743961479779,0.55,1679.4,1679.0,4.169]
[1743961479979,0.55,1679.4,1678.3,4.17078]
[1743961480184,0.55,1679.4,1678.9,4.16928]
[1743961480385,0.55,1679.3,1678.8,4.16947]
[1743961480580,0.55,1679.5,1678.9,4.16939]
[1743961480913,0.55,1679.5,1679.1,4.1687]
[1743961481086,0.55,1679.5,1679.0,4.16909]
[1743961481980,0.55,1679.5,1679.0,4.16903]
[1743961482193,0.55,1679.5,1679.1,4.1688]
[1743961482522,1.537,1679.6,1679.2,4.16859]
[1743961482912,1.537,1679.6,1679.1,4.16878]
[1743961483118,0.55,1679.5,1679.0,4.16894]
[1743961483531,0.55,1679.5,1679.1,4.19862687]
[1743961483834,1.537,1679.6,1679.3,4.16833]
[1743961484130,5.8048765,1679.8,1679.3,8.33657]
[1743961484293,5.8048765,1679.8,1679.3,4.16824]
[1743961484498,5.8048765,1679.8,1679.2,4.16864]
[1743961484839,0.55,1679.7,1679.3,4.16839]
[1743961485133,5.8048765,1679.8,1679.3,4.16839]
[1743961485336,5.8048765,1679.8,1679.5,4.16788]
[1743961485584,5.8048765,1679.8,1679.4,4.16812]
[1743961485779,5.8048765,1679.8,1679.5,4.16779]
[1743961485945,5.8048765,1679.8,1679.3,4.1684]
[1743961486139,5.8048765,1679.8,1679.3,4.16828]
[1743961486340,5.8048765,1679.8,1679.1,4.1689]
[1743961486873,5.8048765,1679.8,1679.7,7.16741]
[1743961487081,1.61139296,1680.8,1679.9,3.0]
[1743961487239,0.30174659,1681.2,1680.1,3.0]
[1743961487240,1.537,1681.2,1680.1,3.0]
[1743961487441,1.537,1681.2,1680.6,4.16496]
[1743961487655,1.537,1681.2,1680.7,4.16492]
[1743961488082,1.537,1681.2,1680.6,8.3302]
[1743961488288,1.537,1681.2,1680.4,4.16543]
[1743961488566,1.537,1681.2,1680.5,4.16529]
[1743961488769,1.537,1681.2,1680.2,4.16617]
[1743961488944,1.537,1681.2,1680.7,4.16482]
[1743961489157,1.61134667,1681.6,1680.5,5.25442]
[1743961489356,1.537,1681.6,1681.3,4.16344]
[1743961489591,1.537,1681.6,1681.4,4.16312]
[1743961489794,1.537,1682.0,1681.6,4.16247]
[1743961490009,44.378,1682.4,1681.8,4.16203]
[1743961490163,1.537,1682.4,1681.3,7.16327]
[1743961490367,1.537,1682.4,1682.1,4.16145]
[1743961490563,1.537,1682.4,1682.0,4.1617]
[1743961490797,1.537,1682.4,1681.7,4.1623]
[1743961490990,1.537,1682.4,1681.5,0.3]
[1743961490991,1.537,1682.4,1681.5,4.16294]
[1743961491194,6.6924099,1681.7,1681.3,4.16329]
[1743961491396,6.6924099,1681.7,1681.2,4.16347]
[1743961491580,6.6924099,1681.7,1681.3,4.16339]
[1743961491775,1.35449407,1681.7,1681.6,4.1627]
[1743961492399,1.35449407,1681.7,1681.6,24.9577]
[1743961492930,1.35449407,1681.7,1681.5,4.16294]
[1743961493093,1.35449407,1681.7,1681.5,4.16281]
[1743961493276,1.35449407,1681.7,1681.4,4.16318]
[1743961493476,1.35449407,1681.7,1681.0,4.16396]
[1743961493705,1.35449407,1681.7,1681.0,4.16403]
[1743961493867,1.35449407,1681.7,1680.4,54.02288001]
[1743961493868,0.55,1681.6,1680.4,47.00663]
[1743961494066,1.35449407,1681.7,1681.3,4.16332]
[1743961494286,1.35449407,1681.7,1681.4,4.16298]
[1743961494864,1.35449407,1681.7,1681.5,4.16292]
[1743961495074,1.35449407,1681.7,1681.5,4.16276]
[1743961495285,1.35449407,1681.7,1681.2,4.16357]
[1743961495493,1.35449407,1681.7,1681.5,4.1628]
[1743961496014,1.35449407,1681.7,1681.6,4.1627]
[1743961496213,1.537,1682.4,1681.2,4.16354]
[1743961496366,1.537,1682.4,1681.7,4.16245]
[1743961496568,1.537,1682.4,1681.7,4.16241]
[1743961496796,0.55,1682.3,1681.4,4.16296]
[1743961496993,0.62429753,1682.3,1681.3,4.16343]
[1743961497178,4.78526753,1682.3,1681.2,4.16358]
[1743961497384,0.55,1682.1,1681.1,4.16393]
[1743961497615,4.78579894,1682.1,1681.1,4.16393]
[1743961497779,0.55,1681.9,1681.0,4.16418]
[1743961497983,0.55,1681.7,1681.0,4.16418]
[1743961498178,11.17997001,1681.2,1680.1,4.16631]
[1743961498373,2.101,1681.0,1680.5,4.16539]
[1743961498698,1.551,1681.8,1681.2,4.16359]
[1743961498897,2.02952675,1682.2,1680.9,4.16429]
[1743961499100,2.02952675,1682.2,1680.7,3.0]
[1743961499101,1.551,1682.2,1681.2,4.16359]
[1743961499419,0.55,1682.1,1681.0,4.16399]
[1743961499582,0.55,1681.9,1681.0,4.16399]
[1743961499772,0.5,1681.9,1681.0,4.16399]
[1743961499973,1.551,1681.7,1680.7,4.16477]
[1743961500177,5.71346,1681.7,1680.6,4.16506]
[1743961500375,4.16311,1681.5,1680.3,4.16573]
[1743961500607,7.09060051,1681.4,1680.0,44.64716581]
[1743961500805,7.01625001,1681.1,1679.9,4.16673]
[1743961501106,7.09062565,1681.1,1679.9,4.61140133]
[1743961501413,1.551,1681.2,1680.0,4.16666]
[1743961501575,1.551,1681.6,1680.9,4.16419]
[1743961501774,1.551,1681.6,1680.5,3.0]
[1743961501775,0.55,1681.5,1680.5,4.16523]
[1743961502082,0.55,1681.3,1680.1,1.089]
[1743961502278,1.551,1681.0,1680.2,4.16617]
[1743961502509,0.55,1680.9,1679.9,4.16686]
[1743961502672,4.78901079,1680.9,1679.8,4.16702]
[1743961502878,0.62436079,1680.9,1679.9,4.16679]
[1743961503183,0.55,1680.9,1680.2,4.16602]
[1743961503395,1.551,1681.0,1680.4,4.1655]
[1743961503788,1.551,1681.0,1680.2,0.833225]
[1743961503789,1.551,1681.0,1680.5,4.16519]
[1743961504023,1.551,1681.0,1680.2,8.4364651]
[1743961504024,1.551,1681.5,1680.7,4.16476]
[1743961504209,1.551,1681.5,1680.6,4.16499]
[1743961504511,1.551,1681.5,1680.2,8.4363151]
[1743961504708,0.55,1681.3,1680.3,4.16573]
[1743961504916,0.77876531,1681.3,1680.5,4.16539]
[1743961505077,8.56725001,1681.5,1680.3,4.16569]
[1743961505078,4.71342,1681.4,1680.3,4.16569]
[1743961505282,0.55,1681.2,1680.2,4.16616]
[1743961505487,1.551,1680.9,1680.0,4.16648]
[1743961505688,0.55,1680.8,1679.9,4.16691]
[1743961505887,0.55,1680.8,1679.7,1.089]
[1743961505888,4.71521,1680.6,1679.5,4.16778]
[1743961506099,0.55,1680.2,1679.4,4.16803]
[1743961506298,0.55,1680.2,1679.4,4.16802]
[1743961506527,1.551,1680.3,1679.7,4.16726]
[1743961506737,0.55,1680.2,1679.3,4.16815]
[1743961507040,4.79078517,1680.2,1679.1,4.16868]
[1743961507242,7.56625001,1680.0,1678.9,4.16934]
[1743961507395,0.55,1679.8,1678.7,4.16987]
[1743961507599,0.55,1679.4,1678.5,4.17027]
[1743961507820,0.55,1679.4,1678.5,4.587227]
[1743961508027,0.55,1679.4,1678.9,4.16927]
[1743961508332,0.55,1679.4,1678.7,4.16974]
[1743961508493,0.62443092,1679.4,1678.4,4.17046]
[1743961508694,0.55,1679.4,1678.6,4.17003]
[1743961508888,0.55,1679.4,1678.6,4.587023]
[1743961509120,0.55,1679.4,1678.7,14.173]
[1743961509327,0.55,1679.4,1679.0,4.16898]
[1743961509498,1.551,1679.5,1679.1,4.16865]
[1743961509694,1.551,1679.5,1679.2,8.33701]
[1743961509896,1.551,1679.5,1679.2,4.16848]
[1743961510104,0.55,1679.4,1678.2,1.089]
[1743961510321,0.55,1679.0,1678.2,8.60512721]
[1743961510623,0.55,1678.8,1678.1,14.113]
[1743961511023,7.56625001,1678.6,1677.5,4.17277]
[1743961511225,1.5462,1678.7,1677.7,4.17221]
[1743961511427,1.5462,1678.7,1678.1,7.17115]
[1743961511631,0.55,1678.6,1678.1,14.087]
[1743961511796,0.55,1678.6,1678.1,18.25837]
[1743961511999,0.55,1678.6,1677.4,4.17305]
[1743961512000,0.55,1678.4,1677.6,14.074]
[1743961512210,0.55,1678.4,1677.3,1.089]
[1743961512211,2.1687,1678.1,1677.0,0.43726393]
[1743961512402,1.6187,1678.1,1677.6,4.1726]
[1743961512602,1.6187,1678.1,1677.1,1.089]
[1743961512603,1.6187,1678.1,1677.4,14.107]
[1743961512831,0.55,1678.4,1677.7,4.17213]
[1743961513016,0.55,1678.4,1677.4,14.107]
[1743961513207,0.55,1678.4,1677.7,4.17231]
[1743961513406,0.62447629,1678.4,1677.5,14.068]
[1743961513607,0.55,1678.4,1677.9,4.17163]
[1743961513928,0.55,1678.4,1677.9,4.17179]
[1743961514138,0.55,1678.4,1677.8,4.1721]
[1743961514345,0.07447543,1678.3,1677.8,4.17196]
[1743961514526,0.55,1678.4,1678.1,4.1712]
[1743961514733,1.6187,1678.5,1678.2,4.171]
[1743961514907,1.6187,1678.9,1678.2,4.17104]
[1743961515108,1.6187,1678.9,1678.2,4.17098]
[1743961515439,1.6187,1678.9,1678.5,4.17024]
[1743961515607,0.07444701,1678.8,1678.1,8.34245]
[1743961515814,0.55,1678.8,1678.2,4.17093]
[1743961516026,0.55,1678.8,1678.0,4.17139]
[1743961516027,1.6187,1678.9,1678.0,4.17163]
[1743961516338,1.6187,1678.9,1678.0,4.17147]
[1743961516553,0.55,1678.8,1677.9,4.17187]
[1743961516733,0.07447019,1678.7,1677.8,13.948]
[1743961516937,0.07445913,1678.8,1678.0,4.17143]
[1743961517250,0.55,1678.6,1677.8,4.17198]
[1743961517429,0.55,1678.6,1676.7,4.17486]
[1743961517430,2.1513,1678.4,1677.4,4.17294]
[1743961517746,0.55,1678.2,1677.6,4.17249]
[1743961518046,0.62448472,1678.3,1677.4,4.590184]
[1743961518245,4.79552472,1678.3,1677.3,4.17326]
[1743961518407,4.79550472,1678.3,1677.3,4.17321]
[1743961518603,4.17114,1678.2,1677.3,4.17321]
[1743961518838,0.55,1677.9,1676.8,18.00443]
[1743961519134,0.62450171,1677.9,1677.1,4.17376]
[1743961519323,0.55,1677.8,1677.1,4.17376]
[1743961519644,1.6013,1677.6,1676.8,13.804583]
[1743961519849,1.6013,1677.6,1677.2,4.1734]
[1743961520038,1.6013,1677.6,1676.4,47.03239]
[1743961520039,0.55,1677.5,1676.4,47.03239]
[1743961520331,0.55,1677.5,1676.9,4.17425]
[1743961520530,0.55,1677.5,1677.1,4.17373]
[1743961520735,0.55,1677.5,1677.2,4.17351]
[1743961520900,0.55,1677.5,1677.1,4.17373]
[1743961521101,1.6013,1678.0,1677.8,4.17193]
[1743961521308,1.6013,1678.5,1677.5,4.17264]
[1743961521508,1.6013,1678.5,1677.8,4.17197]
[1743961521704,1.6013,1678.5,1677.8,4.17212]
[1743961521921,1.67578178,1678.5,1677.8,4.17212]
[1743961522117,1.67578178,1678.5,1677.7,4.17236]
[1743961522118,1.67578178,1678.5,1677.7,4.17222]
[1743961522323,1.6013,1678.5,1677.9,4.17188]
[1743961522746,1.6013,1678.5,1678.1,4.17115]
[1743961522907,1.6013,1678.5,1677.9,4.17173]
[1743961523242,1.6013,1678.5,1678.0,4.17151]
[1743961523551,1.6013,1678.5,1677.8,4.17192]
[1743961523842,1.6013,1678.5,1677.9,4.17164]
[1743961524036,1.6013,1678.5,1677.7,4.17223]
[1743961524238,0.55,1678.3,1677.6,4.1726]
[1743961524539,6.71648784,1678.0,1677.1,8.148373]
[1743961524734,0.62451113,1677.9,1677.0,4.1741]
[1743961524934,0.62451113,1677.9,1677.1,4.17374]
[1743961525136,0.55,1677.9,1677.3,4.17313]
[1743961525427,0.55,1677.9,1677.2,4.17359]
[1743961525627,0.55,1677.9,1677.7,4.17234]
[1743961525829,2.1013,1678.0,1677.7,4.17234]
[1743961526015,0.55,1677.9,1677.3,4.17327]
[1743961526216,0.62449547,1677.9,1677.2,4.17361]
[1743961526421,0.62449547,1677.9,1677.0,4.1741]
[1743961526743,5.66518784,1677.7,1676.9,4.17413]
[1743961526914,0.55,1677.7,1676.9,4.17413]
[1743961527121,0.55,1677.5,1676.9,4.17413]
[1743961527324,0.55,1677.5,1677.0,4.17407]
[1743961527520,0.55,1677.7,1677.0,4.17407]
[1743961527722,0.55,1677.7,1677.0,0.83482]
[1743961527934,1.67582582,1677.8,1677.2,4.1734]
[1743961527935,1.6013,1677.8,1677.2,4.1734]
[1743961528135,0.55,1677.6,1677.0,4.17406]
[1743961528336,0.55,1677.6,1677.0,4.17393]
[1743961528513,0.55,1677.6,1676.6,4.17506]
[1743961528514,0.55,1677.4,1676.6,4.17495]
[1743961528708,0.62452617,1677.4,1676.7,4.17471]
[1743961528924,0.55,1677.4,1676.6,4.17499]
[1743961529140,0.55,1677.2,1676.7,4.17476]
[1743961529349,0.55,1677.2,1676.5,4.17531]
[1743961529540,0.55,1677.4,1676.7,4.17476]
[1743961529715,1.6013,1677.5,1677.1,4.17387]
[1743961529909,1.6013,1677.5,1676.5,7.17536]
[1743961530149,1.6013,1677.5,1676.9,4.17414]
[1743961530366,1.6013,1677.5,1676.6,4.17492]
[1743961530667,5.11518784,1677.6,1676.6,4.17492]
[1743961530668,0.55,1677.1,1676.6,4.17499]
[1743961530873,0.55,1677.1,1676.5,4.17526]
[1743961531039,0.07453787,1677.0,1676.0,0.44489063]
[1743961531242,0.07453787,1677.0,1676.1,4.17623]
[1743961531243,0.55,1676.9,1676.1,4.17623]
[1743961531430,5.11518784,1676.6,1674.9,47.06624]
[1743961531630,5.11518784,1676.6,1675.2,4.17842]
[1743961531631,0.55,1676.2,1675.2,4.17842]
[1743961531952,0.55,1675.9,1674.8,4.1796]
[1743961532153,1.86942023,1676.1,1674.5,14.67787756]
[1743961532154,0.24471697,1675.8,1675.6,4.17758]
[1743961532355,1.5984,1676.1,1676.0,4.17661]
[1743961532650,0.55,1676.5,1675.7,4.17713]
[1743961532853,0.55,1676.1,1675.5,4.17782]
[1743961533029,1.5984,1676.2,1675.5,5.013404]
[1743961533226,0.55,1676.5,1675.5,1.089]
[1743961533430,0.55,1676.5,1675.8,4.17694]
[1743961533665,0.55,1676.5,1675.1,4.17864]
[1743961533666,6.32429,1676.3,1675.1,4.17864]
[1743961533868,0.55,1675.6,1674.3,13.303]
[1743961534027,0.55,1675.6,1674.4,7.3754695]
[1743961534229,0.55,1675.6,1674.2,4.18092]
[1743961534230,5.11518784,1675.2,1674.2,4.18092]
[1743961534439,0.55,1675.0,1673.5,14.428]
[1743961534676,1.5984,1674.4,1673.1,5.27274]
[1743961534961,1.5984,1674.4,1673.5,4.18282]
[1743961535150,0.55,1674.8,1673.9,4.18169]
[1743961535465,1.5984,1674.9,1674.6,4.18007]
[1743961535671,0.78736758,1674.8,1674.4,4.18041]
[1743961535872,1.5984,1674.9,1674.7,4.17981]
[1743961536177,0.78736758,1674.8,1674.5,4.18021]
[1743961536371,0.23736758,1674.8,1674.6,4.1799]
[1743961536573,1.5984,1674.9,1674.7,4.17985]
[1743961536738,0.78591209,1674.8,1673.8,6.20418784]
[1743961536939,0.55,1674.8,1674.3,4.18067]
[1743961537279,0.55,1674.8,1673.8,14.382]
[1743961537280,0.55,1674.6,1672.9,2.99111947]
[1743961537484,5.11518784,1674.4,1673.6,4.18247]
[1743961537666,0.62466775,1674.3,1673.7,4.18227]
[1743961537840,1.87139228,1674.5,1673.0,5.41429979]
[1743961537841,0.23432513,1674.2,1673.0,5.41429979]
[1743961538049,1.6363,1674.5,1674.4,4.1806]
[1743961538244,1.6363,1674.5,1674.3,4.1808]
[1743961538870,0.21471113,1674.4,1673.9,4.18163]
[1743961539068,0.21471113,1674.4,1674.1,4.18131]
[1743961539271,0.55,1674.3,1673.4,13.26]
[1743961539577,0.21425263,1674.2,1674.0,4.18141]
[1743961540079,0.55,1674.4,1674.0,4.18145]
[1743961540382,1.6363,1674.5,1674.3,4.18068]
[1743961540879,1.6363,1674.5,1674.4,4.1806]
[1743961541087,1.6363,1675.5,1675.4,4.17807]
[1743961541245,1.6363,1675.5,1675.3,4.17833]
[1743961541446,0.22099579,1675.4,1675.3,4.17835]
[1743961541998,13.183,1676.4,1675.3,4.17835]
[1743961541999,1.6363,1676.1,1676.0,4.17661]
[1743961542155,0.07456674,1676.7,1675.9,3.0]
[1743961542487,0.22751273,1676.6,1676.0,4.17648]
[1743961542691,0.22751273,1676.6,1676.4,4.17546]
[1743961542877,1.6363,1676.8,1676.3,4.17568]
[1743961543076,0.22382707,1676.7,1675.8,4.17691]
[1743961543276,0.22382707,1676.7,1675.3,5.11518784]
[1743961543277,1.6363,1676.4,1675.4,4.1779]
[1743961543592,0.55,1676.1,1675.5,4.17764]
[1743961543790,0.22054028,1676.0,1675.3,5.11518784]
[1743961544086,0.07458646,1676.3,1675.3,9.29347784]
[1743961544288,0.22054934,1675.9,1675.8,4.1771]
[1743961544459,0.07457492,1676.3,1675.8,4.17693]
[1743961544667,1.6363,1676.4,1676.3,4.17586]
[1743961544898,1.6363,1676.8,1676.6,4.1751]
[1743961545054,1.6363,1676.8,1676.3,4.17572]
[1743961545385,0.07454741,1676.7,1676.1,4.17628]
[1743961545681,1.6363,1676.8,1676.3,4.17568]
[1743961546031,1.6363,1676.8,1676.1,4.1762]
[1743961546161,1.6363,1676.8,1676.3,4.17581]
[1743961546486,0.07455223,1676.7,1675.8,4.17691]
[1743961546662,0.55,1676.5,1675.8,4.17709]
[1743961546985,0.55,1676.3,1675.7,4.17731]
[1743961547187,0.55,1676.3,1675.6,4.17742]
[1743961547406,1.6363,1675.8,1674.0,1.5186]
[1743961547607,1.6363,1675.4,1674.3,4.18066]
[1743961547757,13.72563823,1675.3,1674.3,5.016993]
[1743961547961,13.651,1675.3,1675.0,4.17898]
[1743961548273,1.6363,1675.4,1675.0,4.17897]
[1743961548460,0.55,1675.3,1674.7,4.17969]
[1743961548662,0.55,1675.3,1675.1,4.17885]
[1743961548991,1.6363,1675.4,1675.3,4.17835]
[1743961549192,1.6363,1675.4,1675.2,8.35695]
[1743961549487,1.6363,1675.9,1675.3,25.05115]
[1743961549689,1.6363,1675.9,1675.6,4.17736]
[1743961550056,1.6363,1676.5,1675.5,4.17774]
[1743961550262,0.07457739,1676.4,1675.7,4.17723]
[1743961550465,1.71087694,1676.5,1675.8,4.17703]
[1743961550667,0.22369865,1676.4,1676.0,4.17659]
[1743961551004,0.22369865,1676.4,1675.8,4.1771]
[1743961551205,0.22369865,1676.4,1676.0,4.17648]
[1743961551405,0.22369865,1676.4,1675.6,3.0]
[1743961551695,0.22369865,1676.4,1676.0,8.35312]
[1743961551908,0.22369865,1676.4,1676.1,4.17634]
[1743961552088,0.22369865,1676.4,1675.8,4.17699]
[1743961552392,0.55,1676.3,1675.6,7.17746]
[1743961552611,0.55,1676.3,1675.2,4.17846]
[1743961552612,2.1813,1676.1,1675.2,4.17846]
[1743961552759,0.22281154,1676.0,1675.5,4.17774]
[1743961552964,0.55,1675.9,1675.3,4.17819]
[1743961553225,0.55,1675.9,1675.4,4.17809]
[1743961553369,1.6313,1676.1,1675.5,4.17775]
[1743961553699,0.84723346,1676.0,1674.8,7.05679139]
[1743961553904,0.55,1675.6,1674.3,0.836153]
[1743961554061,0.55,1675.4,1674.3,4.1807]
[1743961554397,0.55,1675.2,1674.2,4.18108]
[1743961554606,0.55,1675.0,1674.2,4.18108]
[1743961554809,0.62464116,1675.0,1674.3,4.18084]
[1743961554975,0.62464116,1675.0,1673.9,12.78268139]
[1743961554976,0.55,1674.9,1674.0,4.18157]
[1743961555310,0.2178758,1674.8,1674.3,4.18064]
[1743961555516,0.62463848,1674.7,1674.0,3.48663614]
[1743961555806,1.84829505,1674.6,1673.8,4.18209]
[1743961556103,0.62465363,1674.5,1673.8,4.18209]
[1743961556303,0.62465363,1674.5,1673.9,4.18167]
[1743961556509,0.55,1674.3,1673.5,4.18282]
[1743961556686,0.55,1674.1,1673.4,4.18294]
[1743961556883,0.21583238,1674.0,1673.4,7.47508539]
[1743961557094,1.5301,1674.8,1674.2,4.18085]
[1743961557294,0.07464164,1674.7,1674.0,4.18144]
[1743961557494,0.20114066,1674.7,1674.5,4.18012]
[1743961557692,1.5301,1674.8,1674.4,8.36118]
[1743961557894,1.5301,1674.8,1674.6,4.18004]
[1743961558108,1.5301,1675.2,1674.6,4.18004]
[1743961558314,1.5301,1674.6,1673.8,7.05679139]
[1743961558496,0.55,1674.5,1674.0,4.18138]
[1743961558820,1.5301,1674.6,1674.1,4.18134]
[1743961559019,1.5301,1674.6,1674.2,4.18101]
[1743961559184,1.5301,1674.6,1674.0,4.18137]
[1743961559524,1.5301,1674.6,1674.1,4.18113]
[1743961559679,1.5301,1674.6,1674.4,4.18059]
[1743961560015,1.5301,1674.6,1673.9,3.0]
[1743961560390,1.5301,1674.6,1674.3,4.1807]
[1743961560901,1.5301,1674.6,1674.2,4.18109]
[1743961561219,2.0301,1675.0,1674.2,3.0]
[1743961561386,0.5,1675.0,1674.9,4.17935]
[1743961561810,0.0746112,1676.0,1674.9,20.878]
[1743961561995,1.5301,1675.9,1675.0,11.23589139]
[1743961562197,1.5301,1676.5,1675.8,4.1771]
[1743961562504,1.5301,1676.5,1676.3,4.17576]
[1743961562689,5.74391802,1676.8,1676.2,4.17607]
[1743961562889,5.74391802,1676.8,1676.2,4.17602]
[1743961563089,0.0745479,1676.7,1675.7,4.1772]
[1743961563315,1.5301,1676.6,1675.3,4.17835]
[1743961563513,1.5301,1676.6,1676.0,4.17644]
[1743961563832,5.74391802,1676.8,1676.3,4.17586]
[1743961563981,5.74391802,1676.8,1676.7,4.17486]
[1743961564316,12.602,1677.7,1677.3,4.17323]
[1743961564317,1.5301,1677.7,1677.3,4.17323]
[1743961564527,1.5301,1677.7,1677.3,8.34648]
[1743961564687,1.5301,1677.7,1677.3,4.17323]
[1743961564887,1.5301,1677.7,1677.3,4.17314]
[1743961565113,1.5301,1678.3,1677.6,4.17242]
[1743961565283,1.5301,1678.3,1677.5,4.1728]
[1743961565284,4.98507093,1678.3,1677.5,4.17287]
[1743961565487,0.13702938,1678.2,1677.5,4.17271]
[1743961565725,0.13702938,1678.2,1677.6,4.1725]
[1743961565892,0.13702938,1678.2,1677.0,26.80191139]
[1743961566105,0.07448586,1678.1,1677.3,4.17317]
[1743961566304,0.07448586,1678.1,1676.1,4.17622]
[1743961566305,1.5301,1678.0,1676.8,4.17444]
[1743961566511,0.55,1677.7,1676.5,1.5119]
[1743961566821,1.5301,1678.1,1677.7,4.17237]
[1743961567028,1.5301,1678.1,1677.2,4.17362]
[1743961567029,1.5301,1678.1,1677.2,4.17344]
[1743961567326,1.5301,1678.1,1677.6,8.34489]
[1743961567633,0.07448844,1678.0,1677.2,4.17345]
[1743961567814,1.5301,1678.1,1677.4,4.17312]
[1743961568189,1.5301,1677.9,1676.9,4.17414]
[1743961568414,0.55,1677.7,1677.1,4.17369]
[1743961568596,0.55,1677.7,1677.2,4.17361]
[1743961568796,1.5301,1677.9,1677.1,7.05679139]